bitfinex/quotes_ETHUSD_20250706
["timestamp","ask_amount","ask_price","bid_price","bid_amount"]
[1751833296599,0.002,2550.0,2549.9,4.11772242]
[1751833300598,0.002,2550.0,2549.9,4.94323964]
[1751833301002,0.002,2550.0,2549.9,6.62778782]
[1751833301784,0.002,2550.0,2549.9,6.5885706]
[1751833301972,0.002,2550.0,2549.9,4.90402242]
[1751833302173,0.002,2550.0,2549.9,4.11772242]
[1751833305206,0.002,2550.0,2549.9,0.196]
[1751833308114,0.002,2550.0,2549.9,4.11772242]
[1751833308325,0.002,2550.0,2549.9,4.89442242]
[1751833309283,0.002,2550.0,2549.9,4.11772242]
[1751833311476,0.002,2550.0,2549.9,0.196]
[1751833311707,3.92362694,2550.0,2549.8,0.001]
[1751833311889,10.50386993,2549.9,2549.8,0.001]
[1751833312095,1.89049029,2549.9,2549.8,0.001]
[1751833312294,1.5228039,2549.9,2549.8,0.001]
[1751833312578,1.89064153,2549.9,2549.8,0.001]
[1751833313581,1.8905042,2549.9,2549.8,0.001]
[1751833313920,1.8905042,2549.9,2549.8,3.92287622]
[1751833314413,0.3677003,2549.9,2549.8,3.92287622]
[1751833314578,0.002,2550.0,2549.9,3.92172242]
[1751833314781,0.36964705,2550.0,2549.9,4.11772242]
[1751833315104,0.002,2550.0,2549.9,4.11772242]
[1751833320323,0.002,2550.0,2549.9,0.196]
[1751833321415,10.7949,2550.0,2549.8,0.001]
[1751833321710,0.36767084,2549.9,2549.8,0.001]
[1751833324249,0.36759633,2549.9,2549.8,0.001]
[1751833325835,4.28931875,2549.9,2549.8,0.001]
[1751833327144,0.36759633,2549.9,2549.8,0.001]
[1751833327310,0.36752919,2549.9,2549.8,0.001]
[1751833328340,4.28925161,2549.9,2549.8,0.001]
[1751833328657,23.45263125,2549.9,2549.8,0.001]
[1751833328810,23.58864008,2549.9,2549.8,0.001]
[1751833329150,31.52364008,2549.9,2549.8,0.001]
[1751833329315,32.32824008,2549.9,2549.8,0.001]
[1751833330143,34.36089297,2549.9,2549.8,0.001]
[1751833330335,32.32824008,2549.9,2549.8,0.001]
[1751833333324,31.82470206,2549.9,2549.8,0.001]
[1751833333646,32.3277851,2549.9,2549.8,0.001]
[1751833333842,32.19190939,2549.9,2549.8,0.001]
[1751833334048,32.32778511,2549.9,2549.8,0.001]
[1751833336649,32.32770569,2549.9,2549.8,0.001]
[1751833337921,32.32970569,2549.9,2549.8,0.001]
[1751833339519,32.32970569,2549.9,2549.7,0.0443954]
[1751833339520,15.41957622,2549.8,2549.7,0.0443954]
[1751833339720,15.92257985,2549.8,2549.7,0.0443954]
[1751833340221,16.22183766,2549.8,2549.7,0.0443954]
[1751833345053,4.47203004,2549.7,2549.6,0.001]
[1751833345252,4.47203004,2549.7,2549.2,0.0433954]
[1751833345253,23.86582507,2549.3,2549.2,0.0433954]
[1751833345548,33.87070079,2549.3,2549.2,0.0433954]
[1751833345756,34.23740128,2549.3,2549.2,0.0433954]
[1751833346346,34.23730582,2549.3,2549.2,0.0433954]
[1751833348057,33.45850582,2549.3,2549.2,0.0433954]
[1751833351157,19.11586039,2549.3,2549.2,0.0433954]
[1751833351365,12.49577821,2549.3,2549.2,0.0433954]
[1751833351529,20.43277821,2549.3,2549.2,0.0433954]
[1751833351856,10.56277821,2549.3,2549.2,0.0433954]
[1751833352163,12.29977821,2549.3,2549.2,0.0433954]
[1751833358064,11.933,2549.3,2549.2,0.0433954]
[1751833358263,12.30002228,2549.3,2549.2,0.0433954]
[1751833358760,12.30012053,2549.3,2549.2,0.0433954]
[1751833359964,12.30012053,2549.3,2549.2,0.8313954]
[1751833362269,10.36712053,2549.3,2549.2,0.8313954]
[1751833362569,10.0,2549.3,2549.2,0.8313954]
[1751833362768,10.0,2549.3,2549.2,5.64163894]
[1751833362969,10.0,2549.3,2549.2,5.83763894]
[1751833363490,10.0,2549.3,2549.2,1.91483964]
[1751833363639,10.0,2549.3,2549.2,1.0273954]
[1751833368383,10.0,2549.3,2549.2,4.9501947]
[1751833368588,10.36760609,2549.3,2549.2,4.9501947]
[1751833368765,10.36760533,2549.3,2549.2,4.9501947]
[1751833370155,10.36760533,2549.3,2549.2,1.0273954]
[1751833370356,10.36768244,2549.3,2549.2,4.9501947]
[1751833371492,10.36768244,2549.3,2549.2,1.0273954]
[1751833373464,22.90370751,2549.3,2549.2,0.0433954]
[1751833373704,24.52601119,2549.3,2549.2,0.0433954]
[1751833374358,22.90370751,2549.3,2549.2,0.0433954]
[1751833374558,23.03972849,2549.3,2549.2,0.0433954]
[1751833374788,23.23572849,2549.3,2549.2,0.0433954]
[1751833375893,19.31308306,2549.3,2549.2,0.0433954]
[1751833376479,23.09974163,2549.3,2549.2,0.0433954]
[1751833376692,23.23577545,2549.3,2549.2,0.0433954]
[1751833377082,23.23576872,2549.3,2549.2,0.0433954]
[1751833377394,23.23581111,2549.3,2549.2,0.0433954]
[1751833384101,22.86815062,2549.3,2549.2,0.0433954]
[1751833384320,14.62274252,2549.3,2549.2,0.0433954]
[1751833384477,23.23612216,2549.3,2549.2,0.0433954]
[1751833386978,24.58042216,2549.3,2549.2,0.0433954]
[1751833388110,24.58026707,2549.3,2549.2,0.0433954]
[1751833388510,32.35026707,2549.3,2549.2,0.0433954]
[1751833388892,32.35017498,2549.3,2549.2,0.0433954]
[1751833391217,32.34995175,2549.3,2549.2,0.0433954]
[1751833393085,42.21995175,2549.3,2549.2,0.0433954]
[1751833393283,32.81227211,2549.3,2549.2,0.0433954]
[1751833393511,41.42565175,2549.3,2549.2,0.0433954]
[1751833394223,42.18825175,2549.3,2549.2,0.0433954]
[1751833396092,42.18803111,2549.3,2549.2,0.0433954]
[1751833400206,34.11493373,2549.3,2549.2,0.0433954]
[1751833400407,36.95254886,2549.3,2549.2,0.0433954]
[1751833400614,2.43616922,2549.3,2549.2,0.0433954]
[1751833400802,2.436155,2549.3,2549.2,3.9661947]
[1751833401013,2.30029444,2549.3,2549.2,3.9661947]
[1751833401320,2.30029444,2549.3,2549.2,4.85509811]
[1751833401534,2.30029444,2549.3,2549.2,0.93229881]
[1751833401860,2.30029444,2549.3,2549.2,0.0433954]
[1751833402640,2.43618496,2549.3,2549.2,0.0433954]
[1751833402838,24.97221003,2549.3,2549.2,0.0433954]
[1751833403021,24.83631951,2549.3,2549.2,0.0433954]
[1751833403341,21.04957375,2549.3,2549.2,0.0433954]
[1751833403561,21.04964763,2549.3,2549.2,0.0433954]
[1751833405058,20.91374521,2549.3,2549.2,0.0433954]
[1751833405564,12.30036557,2549.3,2549.2,3.9661947]
[1751833406362,12.30036557,2549.3,2549.2,0.0433954]
[1751833406564,12.30038528,2549.3,2549.2,3.9661947]
[1751833407066,12.30038528,2549.3,2549.2,0.0433954]
[1751833409465,24.83641035,2549.3,2549.2,0.0433954]
[1751833409968,25.58241035,2549.3,2549.2,0.0433954]
[1751833410436,33.35241035,2549.3,2549.2,0.0433954]
[1751833415665,32.98502507,2549.3,2549.2,0.0433954]
[1751833415849,33.35255536,2549.3,2549.2,0.0433954]
[1751833420682,30.86955536,2549.3,2549.2,0.0433954]
[1751833420885,20.26653029,2549.3,2549.2,0.0433954]
[1751833421192,10.07053029,2549.3,2549.2,4.7786947]
[1751833421369,20.07053029,2549.3,2549.2,4.7786947]
[1751833422290,12.30053029,2549.3,2549.2,4.7786947]
[1751833423388,12.30053029,2549.3,2549.2,5.5864429]
[1751833423588,10.36753029,2549.3,2549.2,5.5864429]
[1751833423797,0.36753029,2549.3,2549.2,5.62567089]
[1751833424000,0.002,2549.5,2549.4,4.70009156]
[1751833424156,0.36948798,2549.5,2549.4,4.70009156]
[1751833424358,0.002,2549.5,2549.4,5.86307715]
[1751833428077,0.002,2549.5,2549.4,5.08547715]
[1751833434611,0.002,2549.5,2549.4,1.16298559]
[1751833434910,0.002,2549.5,2549.4,0.196]
[1751833435089,0.002,2549.5,2549.4,4.11849156]
[1751833439510,0.002,2549.5,2549.4,0.196]
[1751833441740,0.002,2549.5,2549.4,4.11849156]
[1751833442312,0.002,2549.5,2549.4,0.196]
[1751833445432,0.002,2549.5,2549.4,0.197]
[1751833451235,0.36965609,2549.5,2549.4,0.197]
[1751833452234,0.36965609,2549.5,2549.4,0.001]
[1751833453238,4.42817894,2549.5,2549.4,0.001]
[1751833454023,14.42817894,2549.5,2549.4,0.001]
[1751833454814,23.80705858,2549.5,2549.4,0.001]
[1751833455045,24.22087344,2549.5,2549.4,0.001]
[1751833455248,24.35732968,2549.5,2549.4,0.001]
[1751833460743,32.12732968,2549.5,2549.4,0.001]
[1751833461657,32.12701601,2549.5,2549.4,0.001]
[1751833462752,32.74251601,2549.5,2549.4,0.001]
[1751833463051,40.67551601,2549.5,2549.4,0.001]
[1751833467745,41.48091601,2549.5,2549.4,0.001]
[1751833470750,41.47993695,2549.5,2549.4,0.001]
[1751833471269,41.47993138,2549.5,2549.4,0.001]
[1751833471446,40.67453138,2549.5,2549.4,0.001]
[1751833473683,40.67456364,2549.5,2549.4,0.001]
[1751833474385,41.22456364,2549.5,2549.4,0.001]
[1751833474586,42.04886364,2549.5,2549.4,0.001]
[1751833475943,41.49886364,2549.5,2549.4,0.001]
[1751833476982,41.49910225,2549.5,2549.4,0.001]
[1751833480460,42.04910225,2549.5,2549.4,0.001]
[1751833483094,42.04981623,2549.5,2549.4,0.001]
[1751833486200,42.0501457,2549.5,2549.4,0.001]
[1751833492427,41.54601735,2549.5,2549.4,0.001]
[1751833492597,42.05017639,2549.5,2549.4,0.001]
[1751833502025,41.22487639,2549.5,2549.4,0.001]
[1751833502220,3.92264543,2549.3,2549.2,0.03337221]
[1751833502425,30.97218411,2549.3,2549.2,0.03337221]
[1751833504515,30.97200495,2549.3,2549.2,0.03337221]
[1751833507047,30.83588193,2549.3,2549.2,0.03337221]
[1751833507249,30.97194553,2549.3,2549.2,0.03337221]
[1751833507616,30.9719391,2549.3,2549.2,0.03337221]
[1751833509548,31.5219391,2549.3,2549.2,0.03337221]
[1751833509751,39.2919391,2549.3,2549.2,0.03337221]
[1751833510247,39.29195268,2549.3,2549.2,0.03337221]
[1751833511720,39.29191959,2549.3,2549.2,0.03337221]
[1751833519332,39.29177888,2549.3,2549.2,0.03337221]
[1751833522564,39.29177162,2549.3,2549.2,0.03337221]
[1751833522941,38.92403969,2549.3,2549.2,0.03337221]
[1751833523146,39.29178249,2549.3,2549.2,0.03337221]
[1751833523663,33.39243538,2549.3,2549.2,0.03337221]
[1751833523846,28.13475742,2549.3,2549.2,0.03337221]
[1751833524248,20.20375742,2549.3,2549.2,0.03337221]
[1751833524576,28.13475742,2549.3,2549.2,0.03337221]
[1751833525962,20.20375742,2549.3,2549.2,0.03337221]
[1751833526176,28.13475742,2549.3,2549.2,0.03337221]
[1751833526337,20.20375742,2549.3,2549.2,0.03337221]
[1751833526538,20.20375742,2549.3,2549.2,5.21140829]
[1751833526539,0.50375742,2549.3,2549.2,5.21140829]
[1751833526868,0.50375742,2549.3,2549.2,4.93327151]
[1751833527067,0.3677428,2549.3,2549.2,4.9724995]
[1751833527232,0.002,2549.5,2549.4,0.7811]
[1751833527436,0.50557636,2549.5,2549.4,5.39682612]
[1751833528045,0.36957825,2549.5,2549.4,5.39682612]
[1751833528748,0.36935161,2549.5,2549.4,5.39682612]
[1751833530375,0.002,2549.5,2549.4,5.39682612]
[1751833536283,0.002,2549.5,2549.4,1.47433456]
[1751833536455,0.002,2549.5,2549.4,0.9771]
[1751833537278,0.002,2549.5,2549.4,4.89959156]
[1751833542699,0.002,2549.5,2549.4,4.93881647]
[1751833543060,0.002,2549.5,2549.4,4.89959156]
[1751833543959,0.002,2549.5,2549.4,0.9771]
[1751833544158,0.002,2549.5,2549.4,4.89959156]
[1751833544359,0.002,2549.5,2549.4,5.78515071]
[1751833546894,0.002,2549.5,2549.4,4.89959156]
[1751833547089,0.002,2549.5,2549.4,0.9771]
[1751833547593,0.002,2549.5,2549.4,0.196]
[1751833547893,0.002,2549.5,2549.4,4.11849156]
[1751833548078,0.002,2549.5,2549.4,4.93409156]
[1751833548398,0.002,2549.5,2549.4,5.86232552]
[1751833549086,0.002,2549.5,2549.4,5.82310061]
[1751833549281,0.002,2549.5,2549.4,5.86232552]
[1751833551094,0.002,2549.5,2549.4,13.78832552]
[1751833551298,0.002,2549.5,2549.4,13.74910061]
[1751833555001,0.002,2549.5,2549.4,5.82310061]
[1751833555298,0.002,2549.5,2549.4,13.78832552]
[1751833555496,0.002,2549.5,2549.4,13.74910061]
[1751833561423,0.002,2549.5,2549.4,13.74810061]
[1751833575048,1e-08,2549.5,2549.4,13.74810061]
[1751833580151,1e-08,2549.5,2549.4,17.22855852]
[1751833585567,1e-08,2549.5,2549.4,9.30355852]
[1751833585769,1e-08,2549.5,2549.4,12.93150061]
[1751833587132,1e-08,2549.5,2549.4,5.00750061]
[1751833587433,1e-08,2549.5,2549.4,12.04149156]
[1751833590571,1e-08,2549.5,2549.4,4.11849156]
[1751833590772,1e-08,2549.5,2549.4,12.04249156]
[1751833593387,1e-08,2549.5,2549.4,4.11849156]
[1751833593587,1e-08,2549.5,2549.4,12.04249156]
[1751833596197,8.61337965,2549.5,2549.4,0.196]
[1751833596397,0.7641,2549.4,2549.3,8.12]
[1751833596690,0.7641,2549.4,2549.3,0.196]
[1751833598800,0.7641,2549.4,2549.3,0.197]
[1751833599405,0.7641,2549.4,2549.3,4.11964543]
[1751833599798,0.7641,2549.4,2549.3,0.197]
[1751833602208,1e-08,2549.5,2549.4,3.92249156]
[1751833602971,1e-08,2549.5,2549.4,5.79266528]
[1751833620824,1e-08,2549.5,2549.4,5.79366528]
[1751833622552,1e-08,2549.5,2549.4,4.96626528]
[1751833622704,1e-08,2549.5,2549.4,12.04249156]
[1751833627743,1e-08,2549.5,2549.4,0.197]
[1751833628039,0.75440001,2549.5,2549.4,0.001]
[1751833630441,1.12184025,2549.5,2549.4,0.001]
[1751833630744,2.69988922,2549.5,2549.4,0.001]
[1751833631442,2.33244898,2549.5,2549.4,0.001]
[1751833635748,6.25478669,2549.5,2549.4,0.001]
[1751833636419,2.33244898,2549.5,2549.4,0.001]
[1751833638930,0.75440001,2549.5,2549.4,0.001]
[1751833646943,1e-08,2549.5,2549.4,3.92349156]
[1751833647142,1.92700001,2549.5,2549.4,3.92349156]
[1751833648350,1.92700001,2549.5,2549.4,0.001]
[1751833651351,2.69700001,2549.5,2549.4,0.001]
[1751833651866,4.23985001,2549.5,2549.4,0.001]
[1751833653372,4.607372,2549.5,2549.4,0.001]
[1751833653671,4.23985001,2549.5,2549.4,0.001]
[1751833653849,4.60737284,2549.5,2549.4,0.001]
[1751833662482,4.60787457,2549.5,2549.4,0.001]
[1751833664997,2.29502457,2549.5,2549.4,0.001]
[1751833667814,6.21736228,2549.5,2549.4,0.001]
[1751833670608,7.00616228,2549.5,2549.4,0.001]
[1751833671702,7.00610373,2549.5,2549.4,0.001]
[1751833672087,6.63813772,2549.5,2549.4,0.001]
[1751833672287,7.00610357,2549.5,2549.4,0.001]
[1751833672490,14.92810357,2549.5,2549.4,0.001]
[1751833674719,14.67810357,2549.5,2549.4,0.001]
[1751833674926,14.67807525,2549.5,2549.4,0.001]
[1751833675222,2.04493754,2549.5,2549.4,3.92349156]
[1751833675392,1.67700001,2549.5,2549.4,4.92929156]
[1751833676392,1.67700001,2549.5,2549.4,0.197]
[1751833676594,2.04485075,2549.5,2549.4,0.197]
[1751833680720,1.67700001,2549.5,2549.4,0.197]
[1751833680930,2.04490743,2549.5,2549.4,0.197]
[1751833681510,2.04490743,2549.5,2549.4,4.11949156]
[1751833682932,0.36790742,2549.5,2549.4,5.00813279]
[1751833683137,1.926,2549.6,2549.5,3.92233771]
[1751833683439,2.29389595,2549.6,2549.5,3.92233771]
[1751833685301,0.36789595,2549.6,2549.5,3.92233771]
[1751833685942,1.0208,2549.9,2549.5,3.92233771]
[1751833685943,1.926,2549.7,2549.6,3.92218387]
[1751833686241,2.29383797,2549.7,2549.5,3.92226087]
[1751833686444,0.36783797,2549.6,2549.4,4.11942248]
[1751833686943,0.26783797,2549.6,2549.4,4.11942248]
[1751833687156,1.926,2549.7,2549.4,4.11942248]
[1751833687358,1.926,2549.7,2549.5,3.92233433]
[1751833687668,1.926,2549.7,2549.4,4.11943952]
[1751833690047,1.926,2549.7,2549.5,3.92225601]
[1751833690747,1.926,2549.7,2549.4,4.11940947]
[1751833693960,1.926,2549.7,2549.5,3.9223228]
[1751833694338,1.926,2549.7,2549.4,4.11941006]
[1751833696153,1.926,2549.7,2549.4,0.197]
[1751833698858,1.926,2549.7,2549.4,4.11944526]
[1751833699173,0.36769042,2549.6,2549.4,4.11944526]
[1751833699464,1.926,2549.7,2549.4,4.11944526]
[1751833699663,0.36770121,2549.6,2549.4,4.11944526]
[1751833700761,0.36770121,2549.6,2549.4,0.197]
[1751833701064,3.92233771,2549.5,2549.4,0.197]
[1751833701679,5.84815287,2549.7,2549.4,0.197]
[1751833701680,11.926,2549.7,2549.4,0.197]
[1751833701974,0.36774184,2549.6,2549.4,4.11943569]
[1751833702176,2.29374184,2549.6,2549.4,4.11943569]
[1751833702349,1.926,2549.6,2549.4,4.11943569]
[1751833703839,1.926,2549.6,2549.4,0.197]
[1751833704038,0.36778011,2549.5,2549.4,0.197]
[1751833705150,1.926,2549.6,2549.4,0.197]
[1751833705451,0.36780928,2549.5,2549.4,0.197]
[1751833706176,1.926,2549.6,2549.4,0.197]
[1751833709352,0.36794275,2549.5,2549.4,0.197]
[1751833710779,0.36794275,2549.5,2549.4,4.11949156]
[1751833714571,0.36801604,2549.5,2549.4,4.11949156]
[1751833715789,0.36801604,2549.5,2549.4,0.197]
[1751833717579,1.926,2549.6,2549.4,0.197]
[1751833717882,0.36802139,2549.5,2549.4,0.197]
[1751833718382,0.36802139,2549.5,2549.4,4.11949156]
[1751833720365,0.36802139,2549.5,2549.4,5.00457238]
[1751833720560,0.36802221,2549.6,2549.5,3.92233771]
[1751833720761,0.50420104,2549.6,2549.5,3.92233771]
[1751833723385,0.50420104,2549.6,2549.4,5.00448589]
[1751833723587,0.3680221,2549.5,2549.4,5.00448589]
[1751833723754,0.002,2549.7,2549.5,3.92233771]
[1751833723951,0.36803014,2549.6,2549.5,3.92233771]
[1751833724165,0.50421234,2549.6,2549.5,3.92233771]
[1751833726985,0.1361822,2549.6,2549.5,3.92233771]
[1751833727160,0.3680437,2549.6,2549.5,3.92233771]
[1751833727366,0.5042309,2549.6,2549.5,3.92233771]
[1751833729093,0.5062309,2549.6,2549.5,3.92233771]
[1751833733294,0.50623567,2549.6,2549.5,3.92233771]
[1751833739566,0.002,2549.6,2549.5,3.92233771]
[1751833739769,0.37013208,2549.6,2549.5,3.92233771]
[1751833739969,0.50635172,2549.6,2549.5,3.92233771]
[1751833741804,0.50635153,2549.6,2549.5,3.92233771]
[1751833742708,0.50635153,2549.6,2549.4,4.11938074]
[1751833742907,0.36813194,2549.5,2549.4,4.11938074]
[1751833747310,0.002,2549.6,2549.5,3.92233771]
[1751833747607,0.50635407,2549.6,2549.5,3.92233771]
[1751833747938,0.50635413,2549.6,2549.5,3.92233771]
[1751833750951,0.13822032,2549.6,2549.5,4.80403911]
[1751833751123,0.13822229,2549.6,2549.5,4.80403911]
[1751833752341,0.13822229,2549.6,2549.5,3.92233771]
[1751833758641,0.13822229,2549.6,2549.5,4.77156108]
[1751833761239,0.13822229,2549.6,2549.5,4.73233771]
[1751833762337,0.13822229,2549.6,2549.5,4.77156108]
[1751833762537,0.13822229,2549.6,2549.5,0.84922337]
[1751833762746,7.03869206,2549.6,2549.4,12.03347149]
[1751833763046,7.03869206,2549.6,2549.5,3.92233771]
[1751833763658,0.13822229,2549.6,2549.5,3.92233771]
[1751833764156,0.13822229,2549.6,2549.4,4.11942115]
[1751833764639,0.13822229,2549.6,2549.4,0.197]
[1751833764840,7.86189206,2549.6,2549.4,0.197]
[1751833765022,0.78638921,2549.5,2549.4,0.197]
[1751833765217,4.70872692,2549.5,2549.4,0.001]
[1751833765644,14.70872692,2549.5,2549.4,0.001]
[1751833765825,15.21245573,2549.5,2549.4,0.001]
[1751833766822,23.84156913,2549.5,2549.4,0.001]
[1751833767633,11.29011802,2549.5,2549.4,0.001]
[1751833767834,12.42772881,2549.5,2549.4,0.001]
[1751833768146,12.42772881,2549.5,2549.4,3.92349156]
[1751833768452,12.29168531,2549.5,2549.4,3.92349156]
[1751833769645,12.29146576,2549.5,2549.4,3.92349156]
[1751833769824,2.2914679,2549.5,2549.4,3.92349156]
[1751833770237,1.924,2549.5,2549.4,3.92349156]
[1751833771747,1.924,2549.5,2549.4,0.001]
[1751833775162,2.29143389,2549.5,2549.4,0.001]
[1751833775462,1.924,2549.5,2549.4,0.001]
[1751833775633,2.29142318,2549.5,2549.4,0.001]
[1751833777660,3.12412318,2549.5,2549.4,0.001]
[1751833777862,33.72450805,2549.5,2549.4,0.001]
[1751833778167,33.92050805,2549.5,2549.4,0.001]
[1751833779268,33.41715111,2549.5,2549.4,0.001]
[1751833779447,33.92039045,2549.5,2549.4,0.001]
[1751833780049,33.92031177,2549.5,2549.4,0.001]
[1751833780970,29.99797406,2549.5,2549.4,0.001]
[1751833782572,29.99779085,2549.5,2549.4,0.001]
[1751833782950,11.53167745,2549.5,2549.4,0.001]
[1751833783184,20.33897745,2549.5,2549.4,0.001]
[1751833786775,10.50297745,2549.5,2549.4,0.001]
[1751833787063,1.923,2549.5,2549.4,3.92349156]
[1751833787586,0.13822229,2549.6,2549.5,3.92233771]
[1751833787872,12.42834198,2549.6,2549.5,3.92233771]
[1751833788281,10.13822229,2549.6,2549.5,3.92233771]
[1751833789571,10.5054154,2549.6,2549.5,3.92233771]
[1751833789774,10.13822229,2549.6,2549.5,3.92233771]
[1751833790273,10.50544411,2549.6,2549.5,3.92233771]
[1751833796004,10.64145131,2549.6,2549.5,3.92233771]
[1751833797605,10.50544411,2549.6,2549.5,3.92233771]
[1751833797972,10.13822229,2549.6,2549.5,3.92233771]
[1751833798174,10.50577166,2549.6,2549.5,3.92233771]
[1751833798501,10.13822229,2549.6,2549.5,3.92233771]
[1751833798808,10.50575916,2549.6,2549.5,3.92233771]
[1751833801424,0.13822229,2549.6,2549.5,5.52051774]
[1751833802907,0.13822229,2549.6,2549.5,4.72661774]
[1751833803109,0.13822229,2549.6,2549.5,3.92233771]
[1751833803602,0.13822229,2549.6,2549.4,4.1194626]
[1751833803803,0.13822229,2549.6,2549.4,4.1194807]
[1751833803985,0.13822229,2549.6,2549.5,3.92233771]
[1751833804707,0.13822229,2549.6,2549.4,4.11940015]
[1751833810514,0.13822229,2549.6,2549.5,3.92233771]
[1751833815718,0.13822229,2549.6,2549.5,3.92333771]
[1751833816418,0.5060792,2549.6,2549.5,3.92333771]
[1751833818230,0.64220989,2549.6,2549.5,0.001]
[1751833818814,0.13822229,2549.6,2549.5,0.001]
[1751833819127,0.64223583,2549.6,2549.5,0.001]
[1751833819632,0.64223933,2549.6,2549.5,0.001]
[1751833821836,0.64223933,2549.6,2549.5,3.92333771]
[1751833822136,0.64225751,2549.6,2549.5,3.92333771]
[1751833824543,0.64225751,2549.6,2549.5,0.001]
[1751833826438,0.64225751,2549.6,2549.5,3.92333771]
[1751833831309,0.13822229,2549.6,2549.5,3.92333771]
[1751833831536,0.64234517,2549.6,2549.5,3.92333771]
[1751833831748,0.64234517,2549.6,2549.5,0.001]
[1751833832315,0.64234951,2549.6,2549.5,0.001]
[1751833833046,0.64234951,2549.6,2549.5,3.92333771]
[1751833834559,0.64240106,2549.6,2549.5,3.92333771]
[1751833834749,0.64240106,2549.6,2549.5,0.001]
[1751833838047,0.64240106,2549.6,2549.5,3.92333771]
[1751833838254,0.13822229,2549.6,2549.5,5.555935]
[1751833838621,0.13822229,2549.6,2549.5,5.59515837]
[1751833839249,0.13822229,2549.6,2549.5,12.49600698]
[1751833839450,0.13822229,2549.6,2549.5,12.45678361]
[1751833839842,1e-08,2549.6,2549.5,12.45678361]
[1751833840821,1e-08,2549.6,2549.5,5.555935]
[1751833841054,1e-08,2549.6,2549.5,5.59515837]
[1751833846060,1e-08,2549.6,2549.5,5.555935]
[1751833846636,1e-08,2549.6,2549.5,13.50115837]
[1751833846962,1e-08,2549.6,2549.5,13.461935]
[1751833859385,0.00200001,2549.6,2549.5,13.461935]
[1751833860586,0.00200001,2549.6,2549.5,13.459935]
[1751833869401,1e-08,2549.6,2549.5,13.459935]
[1751833869771,1e-08,2549.7,2549.6,3.92218387]
[1751833870000,0.002,2550.0,2549.9,4.67902242]
[1751833870186,0.002,2550.0,2549.9,12.81723964]
[1751833870371,0.002,2550.0,2549.9,12.77802242]
[1751833881716,0.002,2550.3,2550.2,3.92126107]
[1751833881920,0.002,2550.3,2550.2,12.63336107]
[1751833882223,1.921,2550.6,2550.2,12.63336107]
[1751833882224,0.002,2550.6,2550.5,4.73089984]
[1751833882427,0.002,2550.6,2550.5,12.86810783]
[1751833882634,0.002,2550.6,2550.5,12.82889984]
[1751833884939,0.002,2550.6,2550.5,0.196]
[1751833885299,0.7577,2550.6,2550.5,0.196]
[1751833886607,4.67834612,2550.6,2550.4,7.901]
[1751833886808,1.33017239,2550.5,2550.4,8.097]
[1751833888504,1.33017239,2550.5,2550.4,0.196]
[1751833894347,0.7577,2550.6,2550.4,0.196]
[1751833895433,0.002,2550.6,2550.5,3.92079984]
[1751833895616,0.002,2550.6,2550.5,4.91499984]
[1751833896346,1e-08,2550.6,2550.5,4.91499984]
[1751833896649,1e-08,2550.6,2550.5,7.79949233]
[1751833897853,1e-08,2550.6,2550.5,14.90129233]
[1751833898233,1e-08,2550.6,2550.5,0.196]
[1751833898550,1e-08,2550.6,2550.5,12.01679984]
[1751833899128,1e-08,2550.6,2550.5,8.096]
[1751833899637,1e-08,2550.6,2550.5,4.11679984]
[1751833899846,1e-08,2550.6,2550.5,0.196]
[1751833900658,1e-08,2550.6,2550.5,4.11679984]
[1751833906437,1e-08,2550.6,2550.5,0.196]
[1751833906641,4.67989984,2550.5,2550.4,0.197]
[1751833906860,13.30127761,2550.5,2550.4,0.001]
[1751833907641,23.85127761,2550.5,2550.4,0.001]
[1751833907856,23.97395794,2550.5,2550.4,0.001]
[1751833908063,24.87701022,2550.5,2550.4,0.001]
[1751833908564,24.50980073,2550.5,2550.4,0.001]
[1751833909354,24.87695195,2550.5,2550.4,0.001]
[1751833909858,20.95615211,2550.5,2550.4,0.001]
[1751833910754,11.44493155,2550.5,2550.4,0.001]
[1751833910946,3.16693155,2550.5,2550.4,0.001]
[1751833911350,2.79978033,2550.5,2550.4,0.001]
[1751833911650,2.6771,2550.5,2550.4,0.001]
[1751833911840,6.59789984,2550.5,2550.4,0.001]
[1751833912041,25.21927761,2550.5,2550.4,0.001]
[1751833912268,25.41527761,2550.5,2550.4,0.001]
[1751833912447,26.08795939,2550.5,2550.4,0.001]
[1751833912765,26.4549909,2550.5,2550.4,0.001]
[1751833913369,34.2249909,2550.5,2550.4,0.001]
[1751833914968,34.22494169,2550.5,2550.4,0.001]
[1751833915767,25.60356392,2550.5,2550.4,0.001]
[1751833915945,32.95956392,2550.5,2550.4,0.001]
[1751833920982,32.46989984,2550.5,2550.4,0.001]
[1751833921156,32.95935383,2550.5,2550.4,0.001]
[1751833921682,32.95933738,2550.5,2550.4,0.001]
[1751833921878,29.03853754,2550.5,2550.4,0.001]
[1751833922183,32.95933738,2550.5,2550.4,0.001]
[1751833924788,29.03853754,2550.5,2550.4,0.001]
[1751833924954,32.96133738,2550.5,2550.4,0.001]
[1751833926383,32.96133694,2550.5,2550.4,0.001]
[1751833928152,32.96132615,2550.5,2550.4,0.001]
[1751833929479,32.83863987,2550.5,2550.4,0.001]
[1751833929689,32.96144492,2550.5,2550.4,0.001]
[1751833930184,32.96145899,2550.5,2550.4,0.001]
[1751833938967,32.47189984,2550.5,2550.4,0.001]
[1751833939161,32.8396967,2550.5,2550.4,0.001]
[1751833939382,32.96238231,2550.5,2550.4,0.001]
[1751833939686,32.96238251,2550.5,2550.4,0.001]
[1751833944301,21.13558267,2550.5,2550.4,0.001]
[1751833944473,29.03658267,2550.5,2550.4,0.001]
[1751833944673,32.95738251,2550.5,2550.4,0.001]
[1751833948609,32.46689984,2550.5,2550.4,0.001]
[1751833948910,32.95758444,2550.5,2550.4,0.001]
[1751833949114,32.83489928,2550.5,2550.4,0.001]
[1751833949279,32.95758699,2550.5,2550.4,0.001]
[1751833951716,32.5895851,2550.5,2550.4,0.001]
[1751833951918,32.95759826,2550.5,2550.4,0.001]
[1751833952321,33.50759826,2550.5,2550.4,0.001]